[Event "44th Chess Olympiad Open 2022"]
[Site "Chennai"]
[Date "2022.07.30"]
[Round "2.11"]
[White "Gukesh D"]
[Black "Kiik, Kalle"]
[Result "1-0"]
[WhiteElo "2684"]
[BlackElo "2365"]
[Annotator "TA"]
[PlyCount "77"]
[EventDate "2022.??.??"]
[TimeControl "60"]

{[%evp 16,77,68,72,72,60,83,75,62,62,72,47,76,38,76,76,76,69,111,110,104,98,95,
92,95,89,92,87,114,106,99,87,106,83,83,87,95,95,95,95,114,105,102,100,114,115,
116,115,127,115,127,129,186,207,213,196,368,214,389,339,359,337,394,372]} 1. e4
{[%emt 0:01:06]} c5 {[%emt 0:00:42]} 2. Nf3 {[%emt 0:00:34]} Nc6 {[%emt 0:00:
00]} 3. Nc3 {[%emt 0:00:30]} a6 {[%emt 0:05:34]} 4. d4 {[%emt 0:00:42]} cxd4 {
[%emt 0:00:09]} 5. Nxd4 {[%emt 0:00:05]} e5 {[%emt 0:01:55]} 6. Nf5 {[%emt 0:
00:00]} d6 {[%emt 0:01:14]} 7. Bc4 {[%emt 0:06:56]} Nf6 {[%emt 0:03:39]} 8. Bg5
{[%emt 0:02:57]} Bxf5 {[%emt 0:04:57]} 9. exf5 {[%emt 0:01:38]} Be7 {[%emt 0:
00:00] B90: Sicilian Najdorf: Unusual White 6th moves, 6 Be3 Ng4 and 6 Be3 e5.}
10. O-O {[%emt 0:03:31]} Rc8 {[%emt 0:10:06]} 11. Bxf6 {[%emt 0:00:46] White
is more active.} Bxf6 {[%emt 0:01:52] White is better.} 12. Bd5 {[%emt 0:01:12]
} O-O {[%emt 0:07:37] [#]} 13. Qd3 $146 {[%emt 0:20:01]} ({Predecessor:} 13.
Ne4 Nd4 14. c3 Nxf5 15. Bxb7 Rb8 16. Bxa6 Rxb2 17. Bc4 Rb6 18. a4 Rc6 19. Bd5 {
1-0 (35) Schoppen,C (2309)-Warnault,P (1918) Lille 2016}) 13... Qb6 {[%emt 0:
00:00]} 14. Bb3 {[%emt 0:01:38]} Ne7 {[%emt 0:06:12]} 15. Rad1 {[%emt 0:02:37]}
Rfd8 {[%emt 0:00:18][%cal Yd6d5]} 16. Qe4 {[%emt 0:02:21] Against d5} ({But not
} 16. Nd5 Nxd5 17. Qxd5 Rd7 $11) 16... d5 {[%emt 0:08:12]} 17. Nxd5 {[%emt 0:
00:00]} Nxd5 {[%emt 0:00:08]} 18. Rxd5 {[%emt 0:01:06]} Rxd5 {[%emt 0:00:22]}
19. Qxd5 {[%emt 0:02:15]} Qc7 {[%emt 0:00:13]} 20. Qd3 {[%emt 0:11:20]} Rd8 {
[%emt 0:06:09]} 21. Bd5 {[%emt 0:04:09]} Qc5 {[%emt 0:03:13]} 22. Rd1 {[%emt 0:
00:00]} b5 {[%emt 0:01:42]} 23. a3 {[%emt 0:04:12]} Qd4 {[%emt 0:06:29]} 24. c3
{[%emt 0:08:45]} Qxd3 {[%emt 0:00:07]} 25. Rxd3 $16 {[%emt 0:00:03] Endgame
KRB-KRB} Kf8 {[%emt 0:00:12]} 26. Kf1 {[%emt 0:00:33]} Bg5 {[%emt 0:00:00]} 27.
Rd1 {[%emt 0:07:33][%cal Yd3d1,Yd1c1,Yc1c4] Against Bc1} Bc1 {[%emt 0:11:27]}
28. Rxc1 {[%emt 0:00:07]} Rxd5 {[%emt 0:00:04] KR-KR} 29. Ke2 {[%emt 0:00:20]
Inhibits Rd2+.} Ke7 {[%emt 0:00:06]} 30. c4 {[%emt 0:03:09]} bxc4 {[%emt 0:00:
13]} 31. Rxc4 {[%emt 0:00:06]} a5 {[%emt 0:01:50]} 32. g4 {[%emt 0:02:10]} Kf6
{[%emt 0:01:10]} 33. h4 {[%emt 0:00:24]} Rd6 {[%emt 0:00:00]} (33... Rb5 $16)
34. b4 $18 {[%emt 0:02:18]} axb4 {[%emt 0:00:12]} 35. axb4 {[%emt 0:00:01]
Black must now prevent b5.} ({Don't play} 35. Rxb4 $6 Ra6 $16) 35... Ra6 $2 {
[%emt 0:00:26] [#]} (35... Rb6 36. Kd3 h5) 36. Ke3 {[%emt 0:00:00]} (36. b5
$142 Ra7 37. Kd3) 36... Ra2 {[%emt 0:00:43]} (36... Rb6 {might work better.}
37. Ke4 Rb5 38. g5+ Ke7 39. Rc7+ Kf8) 37. Rc6+ {[%emt 0:00:38]} Ke7 {[%emt 0:
00:04]} 38. Rb6 {[%emt 0:00:36]} Rb2 {[%emt 0:01:32]} 39. g5 {[%emt 0:00:16]
Weighted Error Value: White=0.12 (very precise) /Black=0.28 (precise)} 1-0

[Event "44th Chess Olympiad Open 2022"]
[Site "Chennai"]
[Date "2022.07.30"]
[Round "2.11"]
[White "Adhiban, B..."]
[Black "Volodin, Aleksandr"]
[Result "1-0"]
[WhiteElo "2598"]
[BlackElo "2454"]
[Annotator "TA"]
[PlyCount "81"]
[EventDate "2022.??.??"]
[TimeControl "60"]

{[%evp 20,81,7,10,18,6,62,0,44,8,15,-25,35,21,21,21,26,20,25,0,0,21,20,16,29,
29,29,29,29,29,29,5,18,0,0,0,0,0,0,0,0,0,0,0,0,0,0,0,0,0,0,0,39,39,99,123,233,
239,307,306,1197,1129,995,958]} 1. d4 {[%emt 0:00:06]} d5 {[%emt 0:01:16]} 2.
c4 {[%emt 0:00:10]} c6 {[%emt 0:00:15]} 3. Nf3 {[%emt 0:00:50][%cal Yg1f3,
Yf3e5,Ye5c4,Yc4e3]} Nf6 {[%emt 0:00:15]} 4. Nc3 {[%emt 0:00:35]} e6 {[%emt 0:
00:13]} 5. g3 {[%emt 0:00:28]} dxc4 {[%emt 0:04:41]} 6. Bg2 {[%emt 0:00:00]}
Be7 {[%emt 0:01:56]} 7. Ne5 {[%emt 0:05:57]} O-O {[%emt 0:06:07]} 8. O-O {
[%emt 0:06:18]} Nbd7 {[%emt 0:04:15]} 9. Nxc4 {[%emt 0:00:50]} Nd5 {[%emt 0:00:
36]} 10. e4 {[%emt 0:07:59]} Nxc3 {[%emt 0:02:35]} 11. bxc3 {[%emt 0:00:02]} b5
{[%emt 0:00:46] E06: Closed Catalan: Early deviations.} 12. Ne3 {[%emt 0:00:18]
} Bb7 {[%emt 0:00:19]} ({Better is} 12... c5 $11) 13. a4 {[%emt 0:05:45]} (13.
Rb1 $14) 13... a6 {[%emt 0:11:14] [#] The position is equal.} 14. e5 $146 {
[%emt 0:00:47]} ({Predecessor:} 14. Qb3 Qc7 15. Bd2 Nb6 16. a5 Nd7 17. c4 Nf6
18. Rfc1 Qd7 19. Rd1 Rad8 20. Bc3 {1-0 (64) Egesa,E (1898)-Omara,H Kampala 2019
}) 14... Nb6 $1 {[%emt 0:03:46]} 15. a5 {[%emt 0:00:00]} Nd5 {[%emt 0:00:56]} (
15... Na4 $1 $11) 16. Nxd5 {[%emt 0:00:21]} cxd5 {[%emt 0:00:30]} 17. Qg4 {
[%emt 0:00:52]} Kh8 {[%emt 0:06:49]} 18. Bd2 {[%emt 0:00:00]} Rc8 {[%emt 0:00:
28]} 19. Rfb1 {[%emt 0:03:30]} Bc6 {[%emt 0:12:56]} 20. Bf1 {[%emt 0:00:25]}
Be8 {[%emt 0:00:42]} 21. Bd3 {[%emt 0:04:15]} Rc6 {[%emt 0:00:33]} 22. Re1 {
[%emt 0:04:23]} Qc8 {[%emt 0:04:42]} 23. Qh3 {[%emt 0:00:00][%csl Gd3][%cal
Rh3h7] [#]} g6 $1 {[%emt 0:00:31]} 24. Qh6 {[%emt 0:00:00] White threatens Bg5
and mate.} Kg8 {[%emt 0:03:35]} 25. h4 {[%emt 0:07:36][%cal Yh2h4,Yh4h5,Yh5h6]}
f5 {[%emt 0:02:39]} (25... f6 {seems wilder.} 26. h5 f5 27. g4 gxh5 28. gxh5
Kh8) 26. exf6 {[%emt 0:00:12]} Bxf6 {[%emt 0:00:00][%cal Yb5b4]} 27. Qe3 {
[%emt 0:00:13]} Bf7 {[%emt 0:03:24]} 28. h5 {[%emt 0:05:20]} Bg7 {[%emt 0:04:
38]} 29. h6 {[%emt 0:03:33]} Bh8 {[%emt 0:00:00]} 30. Qe2 {[%emt 0:03:02]} Qd7
{[%emt 0:06:23]} (30... b4 $2 31. Bf4 Bf6 32. Be5 $18) 31. Bf4 {[%emt 0:01:33]}
Qe7 {[%emt 0:01:13]} (31... Rxc3 $2 32. Be5 Be8 33. Bxh8 Kxh8 34. Qe5+ Kg8 35.
Rac1 Rxc1 36. Rxc1 $18) 32. Bd2 {[%emt 0:00:00]} Rfc8 {[%emt 0:00:53]} 33. Kg2
{[%emt 0:01:05]} Bf6 {[%emt 0:00:51]} 34. Qg4 {[%emt 0:00:54]} Qd8 {[%emt 0:01:
44]} 35. Re2 {[%emt 0:03:47]} Rd6 {[%emt 0:03:43]} 36. Rae1 {[%emt 0:04:46]}
Qd7 {[%emt 0:02:26] [#]} (36... Rdc6 $14) 37. Re3 $1 $16 {[%emt 0:02:24] White
is more active.} Rf8 {[%emt 0:00:45]} (37... Re8 $16) 38. Rf3 $18 {[%emt 0:00:
38]} Be8 {[%emt 0:01:18]} 39. Bg5 {[%emt 0:01:41]} Qd8 {[%emt 0:04:28]} (39...
Be7 40. Bxe7 Qxe7 41. Rxf8+ Qxf8) 40. Rxf6 {[%emt 0:02:57]} Rxf6 {[%emt 0:00:
08]} 41. Qh4 {[%emt 0:30:13] Weighted Error Value: White=0.08 (flawless) /
Black=0.19 (very precise)} 1-0

[Event "44th Chess Olympiad Open 2022"]
[Site "Chennai"]
[Date "2022.07.30"]
[Round "2.11"]
[White "Chukavin, Kirill"]
[Black "Praggnanandhaa R"]
[Result "0-1"]
[WhiteElo "2418"]
[BlackElo "2648"]
[Annotator "TA"]
[PlyCount "82"]
[EventDate "2022.??.??"]
[TimeControl "60"]

{[%evp 17,82,22,16,0,0,0,0,0,0,-4,0,17,13,-9,-8,-20,-22,-18,-9,-55,-75,-60,-55,
-66,-66,-59,-70,-70,-80,-68,-72,-63,-28,-32,79,-28,-26,-117,-115,-253,-243,
-247,-250,-277,-270,-308,-305,-379,-335,-412,-392,-400,-406,-452,-349,-419,
-391,-586,-541,-29979,-29980,-29980,-29981,-29981,-29982,-29982,-29982]} 1. e4
{[%emt 0:00:05]} c5 {[%emt 0:00:43]} 2. Nf3 {[%emt 0:00:18][%cal Yg1f3,Yf3d4,
Yd4e2]} Nc6 {[%emt 0:00:07]} 3. d4 {[%emt 0:00:33]} cxd4 {[%emt 0:00:00]} 4.
Nxd4 {[%emt 0:00:04]} Nf6 {[%emt 0:00:09]} 5. Nc3 {[%emt 0:00:20]} d6 {[%emt 0:
00:57]} 6. g3 {[%emt 0:00:33]} g6 {[%emt 0:00:21]} 7. Nde2 {[%emt 0:00:00]} Bg7
{[%emt 0:00:19]} 8. Bg2 {[%emt 0:00:09]} Bd7 {[%emt 0:00:31]} 9. h3 {[%emt 0:
03:20]} Qc8 {[%emt 0:00:44]} 10. Nf4 {[%emt 0:05:52] B70: Sicilian Dragon: 6
g3 and 6 Be2 (without a later Be3).} h5 {[%emt 0:05:51]} 11. Nfd5 {[%emt 0:04:
00]} Nxd5 {[%emt 0:07:47]} 12. Nxd5 {[%emt 0:01:27] The position is equal.} b5
{[%emt 0:04:08]} 13. c3 {[%emt 0:05:48]} O-O {[%emt 0:14:33]} 14. Bg5 {[%emt 0:
03:43]} Re8 {[%emt 0:02:14] [#]} 15. Kf1 $146 {[%emt 0:13:12]} ({Predecessor:} 
15. Rc1 Rb8 16. Qd2 Be6 17. b3 Qd7 18. Nf4 a5 19. O-O a4 20. Nxe6 Qxe6 21. f4
axb3 {0-1 (41) Beck,F (2284)-Likavsky,T (2498) Pardubice 2006}) 15... Be6 {
[%emt 0:05:28][%cal Yb5b4]} 16. Kg1 {[%emt 0:03:06]} b4 {[%emt 0:00:00]} 17.
cxb4 {[%emt 0:05:47]} Bxd5 {[%emt 0:03:56]} 18. Qxd5 {[%emt 0:15:21]} (18. exd5
$11 {should be considered.} Nxb4 19. g4) 18... Nxb4 $15 {[%emt 0:00:00]} 19.
Qd2 {[%emt 0:00:13]} Rb8 {[%emt 0:03:31]} 20. Rc1 {[%emt 0:03:09] Prevents Qc2.
} Qa6 {[%emt 0:02:31]} 21. a3 {[%emt 0:06:18]} Nc6 {[%emt 0:01:12][%cal Yb4c6,
Yc6d4,Yd4f3]} 22. Bf1 {[%emt 0:02:05]} Qb7 {[%emt 0:04:03]} 23. b4 {[%emt 0:00:
38]} Nd4 {[%emt 0:03:40] [#] ...Nf3+ is the strong threat.} 24. Qd3 {[%emt 0:
02:11] Against Nf3+} a5 {[%emt 0:08:55]} 25. Be3 {[%emt 0:00:00] A strong pair
of Bishops.} Nf3+ {[%emt 0:03:00]} 26. Kg2 {[%emt 0:00:34]} Ne5 {[%emt 0:00:22]
} 27. Qb1 {[%emt 0:05:00]} (27. Qd5 $1 $11 Qxd5 28. exd5 axb4 29. a4) 27...
axb4 $17 {[%emt 0:02:45][%cal Ya5b4,Yb4b3,Yb3b2]} 28. a4 {[%emt 0:00:08] Now
White is beyond hope.} (28. axb4 $17 Qxb4 29. Be2) 28... b3 $19 {[%emt 0:03:55]
And now ...b2 would win.} 29. Bb5 {[%emt 0:04:28]} b2 {[%emt 0:01:12]} 30. Rcd1
{[%emt 0:00:34]} Nc6 {[%emt 0:00:59] Inhibits Bd4.} 31. Rhe1 {[%emt 0:01:57]
[%cal Yh1e1,Ye1e2,Ye2c2]} Rec8 {[%emt 0:00:00]} 32. Re2 {[%emt 0:03:27]} Na7 {
[%emt 0:01:23]} 33. Bxa7 {[%emt 0:01:48]} Qxa7 {[%emt 0:00:07]} 34. Rc2 {
[%emt 0:00:20]} Rc5 {[%emt 0:01:50]} 35. Rdd2 {[%emt 0:01:16]} Rbc8 {[%emt 0:
01:13]} 36. h4 {[%emt 0:00:59]} Qa8 {[%emt 0:00:00] [#] aiming for ...Rxc2.}
37. f3 {[%emt 0:00:30]} (37. Kh2 {keeps fighting.}) 37... Qa5 {[%emt 0:00:22] 
( -> ...Rxc2)} 38. Re2 {[%emt 0:00:55]} Rxc2 {[%emt 0:01:21] Black mates.} 39.
Rxc2 {[%emt 0:00:08]} Rxc2+ {[%emt 0:00:10]} 40. Qxc2 {[%emt 0:00:07]} Qe1 {
[%emt 0:00:09]} 41. Bd3 {[%emt 0:30:30]} Bd4 {[%emt 0:30:18] Weighted Error
Value: White=0.57/Black=0.06 (flawless)} 0-1

[Event "44th Chess Olympiad Open 2022"]
[Site "Chennai"]
[Date "2022.07.30"]
[Round "2.11"]
[White "Shishkov, Andrei"]
[Black "Sadhwani, Raunak"]
[Result "0-1"]
[WhiteElo "2366"]
[BlackElo "2611"]
[Annotator "TA"]
[PlyCount "118"]
[EventDate "2022.??.??"]
[TimeControl "60"]

{[%evp 9,117,35,32,16,30,27,32,26,52,25,26,33,35,17,46,35,27,0,2,10,6,0,155,
165,146,61,125,57,46,37,33,35,37,0,0,0,0,0,0,0,40,32,26,18,41,-16,4,-75,-72,
-68,-32,-23,0,-98,-85,-72,-89,-89,-90,-197,-188,-222,-170,-155,-156,-160,-152,
-159,-139,-211,-179,-179,-179,-180,-179,-211,-203,-196,-165,-476,-443,-480,
-485,-440,-470,-440,-416,-383,-381,-579,-541,-770,-254,-301,-267,-4162,-4162,
-4162,-4162,-4162,-4162,-4160,-4151,-4162,-4162,-4162,-4153,-29985,-29986,
-29999]} 1. d4 {[%emt 0:00:01]} f5 {[%emt 0:00:06]} 2. g3 {[%emt 0:00:08]} Nf6
{[%emt 0:00:06]} 3. Bg2 {[%emt 0:00:03]} g6 {[%emt 0:00:05]} 4. Nh3 {[%emt 0:
00:00]} Bg7 {[%emt 0:00:07]} 5. b3 {[%emt 0:00:15][%cal Yb2b3,Yb3b4,Yb4b5] [#]}
c5 $146 {[%emt 0:08:48]} ({Predecessor:} 5... O-O 6. Bb2 d6 7. c4 c6 8. d5 e5
9. dxe6 Na6 10. Nc3 Qe7 11. O-O Bxe6 12. Ng5 Bd7 13. Qc2 Nc5 14. Rad1 Rad8 15.
e3 Ng4 16. Nf3 Ne4 17. Nxe4 fxe4 18. Bxg7 exf3 19. Bxf8 Rxf8 20. Bh1 Ne5 21.
Rd4 c5 {½-½ (34) Dronov,A (2675)-Schramm,A (2521) ICCF email 2019}) 6. dxc5 {
[%emt 0:00:34] A81: Dutch Defence: 2 g3.} Qa5+ {[%emt 0:02:11]} 7. c3 {[%emt 0:
04:04]} Qxc5 {[%emt 0:01:06]} 8. O-O {[%emt 0:08:10] White is slightly better.}
Nc6 {[%emt 0:05:51]} 9. Ba3 {[%emt 0:11:22]} (9. b4 $5 {[%cal Rb4c5]} Qb6 10.
Nf4 $14) 9... Qa5 {[%emt 0:05:40]} 10. b4 {[%emt 0:04:01]} Qc7 {[%emt 0:14:02]}
11. Qb3 {[%emt 0:01:59]} e6 {[%emt 0:09:43]} 12. Nd2 {[%emt 0:10:56]} d5 {
[%emt 0:03:13]} 13. b5 {[%emt 0:05:41]} Na5 {[%emt 0:00:34]} 14. Qa4 {[%emt 0:
08:21] Threatens to win with b6+.} (14. Qb4 Ne4 15. Bxe4 (15. b6 $2 axb6 16.
Bxe4 fxe4 $19) 15... fxe4) 14... Bd7 {[%emt 0:07:54]} 15. Rac1 {[%emt 0:09:22]}
Ne4 $2 {[%emt 0:07:27]} (15... a6 $11) 16. Bxe4 {[%emt 0:00:00]} ({And not} 16.
Nxe4 fxe4 17. c4 Nxc4 $15) 16... dxe4 {[%emt 0:00:41]} 17. Ng5 {[%emt 0:03:37]}
({White should play} 17. c4 $16) 17... b6 {[%emt 0:00:00]} ({Black should try} 
17... Bh6 $14 18. h4 e3) 18. Qb4 {[%emt 0:05:05]} (18. Rfd1 $16) 18... Bf8 $14
{[%emt 0:02:21]} 19. Qd4 {[%emt 0:00:32]} e5 {[%emt 0:00:00]} 20. Qd5 {[%emt 0:
00:11]} O-O-O {[%emt 0:00:05][%cal Ya8d8,Yd8d2,Yd2a2]} 21. Bb4 {[%emt 0:11:52]}
Be8 {[%emt 0:04:06] Against Nf7. Really sharp!} 22. Qa8+ {[%emt 0:04:46]} Qb8 {
[%emt 0:00:04]} (22... Kd7 $5 23. Qd5+ Kc8 24. Qa8+ Kd7 25. Qd5+ Kc8 $11) 23.
Qxb8+ {[%emt 0:00:02]} Kxb8 {[%emt 0:00:00]} 24. Bxf8 {[%emt 0:00:20]} Rxf8 {
[%emt 0:00:04]} 25. Ne6 {[%emt 0:00:21]} Rxd2 {[%emt 0:02:51]} 26. Nxf8 {
[%emt 0:00:04]} Bxb5 {[%emt 0:00:37]} 27. Rfd1 {[%emt 0:01:05]} (27. c4 $14
Bxc4 28. Rfd1 Rxd1+ 29. Rxd1) 27... Rxa2 {[%emt 0:00:00] And now ...Nb3 would
win.} 28. Nd7+ {[%emt 0:03:07]} (28. e3 $11) 28... Kc8 $1 $17 {[%emt 0:01:28]}
29. Nxe5 {[%emt 0:00:12]} Nb3 {[%emt 0:00:54]} 30. Rb1 {[%emt 0:00:27]} Bxe2 {
[%emt 0:00:05]} 31. Re1 {[%emt 0:01:18]} (31. Rd6 $1 $11 {remains equal.})
31... Nc5 $36 {[%emt 0:00:34] Strongly threatening ...Nd3. Black has strong
initiative. Black is more active.} 32. Ra1 {[%emt 0:00:06]} Rxa1 {[%emt 0:00:
05]} 33. Rxa1 {[%emt 0:00:01] Endgame KRN-KBN} a5 {[%emt 0:00:06]} 34. Nc6 {
[%emt 0:00:42]} (34. f4 $17) 34... Nb3 $19 {[%emt 0:01:06]} 35. Ra3 {[%emt 0:
00:10]} Bc4 {[%emt 0:00:33]} 36. Ne5 {[%emt 0:00:13]} Be6 {[%emt 0:00:15]} 37.
f3 {[%emt 0:00:55]} Kc7 $1 {[%emt 0:00:21]} 38. fxe4 {[%emt 0:00:09]} fxe4 {
[%emt 0:00:05] ...Nc5 is the strong threat.} 39. Kf2 {[%emt 0:00:39]} (39. Ng4
$17) 39... Nc5 {[%emt 0:00:00]} 40. Ke3 {[%emt 0:01:27]} Kd6 {[%emt 0:00:14]}
41. Kd4 {[%emt 0:03:02]} b5 {[%emt 0:00:09]} 42. h3 {[%emt 0:06:14]} (42. c4 b4
43. Rxa5 Nb3+ 44. Kxe4 Bf5+ 45. Kf4 Nxa5 $19) 42... a4 $1 {[%emt 0:07:57]} 43.
Ng4 {[%emt 0:04:24]} Bf5 {[%emt 0:02:52]} 44. Nf6 $2 {[%emt 0:10:22]} (44. Nf2
{was the crucial defense.}) 44... Nb3+ $1 {[%emt 0:00:45]} 45. Ke3 {[%emt 0:00:
11]} Ke5 $1 {[%emt 0:00:00]} 46. Nxh7 {[%emt 0:03:08]} Na5 {[%emt 0:00:07]
aiming for ...Nc4+.} 47. Ra1 {[%emt 0:02:05]} Nc4+ {[%emt 0:00:30]} 48. Kf2 {
[%emt 0:00:52]} Bxh3 {[%emt 0:00:00] Hoping for ...Bg4.} 49. Rb1 {[%emt 0:01:
56]} (49. g4 {keeps fighting.} Bxg4 50. Kg3) 49... e3+ {[%emt 0:00:18]} 50. Ke1
{[%emt 0:00:37]} Bd7 {[%emt 0:00:00]} (50... Na3 51. Rb2 Kd5) 51. Nf8 {[%emt 0:
00:00] [#]} Be8 {[%emt 0:00:00] White must now prevent ...Nd2.} 52. Nxg6+ $2 {
[%emt 0:00:38]} (52. Ke2) 52... Bxg6 {[%emt 0:00:06]} 53. Rxb5+ {[%emt 0:00:02]
[#]} Ke4 $1 {[%emt 0:00:00]} 54. Rb4 {[%emt 0:00:05]} Kd3 {[%emt 0:00:41]} 55.
Rxa4 {[%emt 0:00:10]} Bh5 {[%emt 0:00:09]} 56. Ra7 {[%emt 0:03:10]} Ne5 {
[%emt 0:00:18] ( -> ...Be2)} 57. Re7 {[%emt 0:00:19]} Nf3+ {[%emt 0:00:08]} 58.
Kf1 {[%emt 0:00:11]} Bg4 {[%emt 0:00:06][%cal Rg4h3]} 59. Re8 {[%emt 0:01:02]}
Bh3# {[%emt 0:00:03] Never resign too early! Weighted Error Value: White=0.58/
Black=0.19 (very precise)} 0-1

[Event "44th Chess Olympiad Open 2022"]
[Site "Chennai"]
[Date "2022.07.30"]
[Round "2.12"]
[White "Ter-Sahakyan, Samvel"]
[Black "De La Riva Aguado, Oscar"]
[Result "1/2-1/2"]
[WhiteElo "2625"]
[BlackElo "2424"]
[Annotator "TA"]
[PlyCount "57"]
[EventDate "2022.??.??"]
[TimeControl "60"]

{[%evp 12,57,-22,-32,15,12,37,37,43,24,23,19,13,15,20,1,33,24,24,-7,-28,-22,
-13,-12,0,0,0,0,0,0,0,0,39,43,43,39,49,0,0,0,0,0,0,0,0,0,0,0]} 1. d4 {[%emt 0:
00:00]} d5 {[%emt 0:00:30]} 2. c4 {[%emt 0:00:15]} c6 {[%emt 0:00:26]} 3. Nf3 {
[%emt 0:01:06]} e6 {[%emt 0:01:00]} 4. Nc3 {[%emt 0:10:23]} dxc4 {[%emt 0:00:
00]} 5. e4 {[%emt 0:07:11]} b5 {[%emt 0:03:29]} 6. Be2 {[%emt 0:00:05]} Bb7 {
[%emt 0:02:38]} 7. O-O {[%emt 0:01:48]} Nd7 {[%emt 0:03:16] D31: Queen's
Gambit Declined: Semi-Slav without ...Nf6 (+ Marshall Gambit and Noteboom) and
Exchange Variation lines without ...Nf6.} (7... Nf6 $15) 8. d5 $11 {[%emt 0:00:
00]} cxd5 {[%emt 0:22:34]} 9. exd5 {[%emt 0:03:01]} exd5 {[%emt 0:00:10] [#]
White is slightly better.} 10. Bf4 $146 {[%emt 0:15:34]} ({Predecessor:} 10.
Re1 Be7 11. Nxb5 a6 12. Nc3 Ngf6 13. b3 cxb3 14. Qxb3 Nc5 15. Qb1 O-O 16. Be3 {
0-1 (22) Andersen,K (2003)-Pedersen,S (2083) Copenhagen 2013}) 10... a6 {
[%emt 0:12:30]} 11. Nxd5 {[%emt 0:14:18]} Bxd5 {[%emt 0:05:08]} 12. Qxd5 {
[%emt 0:00:04]} Ngf6 {[%emt 0:02:47]} 13. Qf5 {[%emt 0:02:40][%cal Ye2c4]
Threatens to win with Bxc4! White has compensation.} Be7 {[%emt 0:06:28]} (
13... g6 $5 {[%cal Rg6f5]} 14. Qh3 Bg7 $14) 14. Rad1 {[%emt 0:01:40]} Qb6 {
[%emt 0:12:23]} 15. Ng5 {[%emt 0:10:33][%cal Yd1d7] Hoping for Rxd7!} Rd8 {
[%emt 0:09:46]} 16. b3 {[%emt 0:03:33]} cxb3 {[%emt 0:02:25]} 17. axb3 {
[%emt 0:02:08]} h6 {[%emt 0:04:44]} 18. Be3 {[%emt 0:04:32] A strong pair of
Bishops.} Qc7 {[%emt 0:01:51]} 19. Nf3 {[%emt 0:00:36][%cal Yg5f3,Yf3d4,Yd4f5]}
O-O {[%emt 0:00:54]} 20. Rc1 {[%emt 0:00:03]} Qb7 {[%emt 0:04:03]} 21. Nd4 {
[%emt 0:00:15]} Qd5 {[%emt 0:00:11]} 22. Qh3 {[%emt 0:02:04] Bf3 is the strong
threat.} Ne5 {[%emt 0:01:29]} 23. Nf5 $1 {[%emt 0:00:34]} Ng6 {[%emt 0:00:54] 
[#]} 24. Bxh6 $1 {[%emt 0:01:29]} gxh6 {[%emt 0:00:10] The position is equal.}
25. Nxh6+ {[%emt 0:00:05]} Kg7 {[%emt 0:00:04] And now ... Rfe8 would win.} 26.
Nf5+ {[%emt 0:00:13]} Kg8 {[%emt 0:00:06] White must now prevent ...Rfe8.} 27.
Nh6+ {[%emt 0:00:08]} Kg7 {[%emt 0:00:06]} 28. Nf5+ {[%emt 0:00:06]} Kg8 {
[%emt 0:00:07]} 29. Nh6+ {[%emt 0:00:23] Weighted Error Value: White=0.06 
(flawless) /Black=0.10 (very precise)} 1/2-1/2

[Event "44th Chess Olympiad Open 2022"]
[Site "Chennai"]
[Date "2022.07.30"]
[Round "2.12"]
[White "Hovhannisyan, Robert"]
[Black "Ribera Veganzones, Serni"]
[Result "1-0"]
[WhiteElo "2591"]
[BlackElo "2203"]
[Annotator "ChessBase"]
[PlyCount "93"]
[EventDate "2022.??.??"]
[TimeControl "60"]

1. e4 {[%emt 0:00:05]} c5 {[%emt 0:00:11]} 2. Nf3 {[%emt 0:00:07]} Nc6 {
[%emt 0:00:12]} 3. Nc3 {[%emt 0:00:20]} e6 {[%emt 0:00:54]} 4. d4 {[%emt 0:00:
00]} cxd4 {[%emt 0:00:18]} 5. Nxd4 {[%emt 0:00:13]} Qc7 {[%emt 0:00:23]} 6. Be2
{[%emt 0:00:27]} Nf6 {[%emt 0:00:30]} 7. f4 {[%emt 0:00:42]} d6 {[%emt 0:06:53]
} 8. Be3 {[%emt 0:01:47]} a6 {[%emt 0:02:23]} 9. Qd2 {[%emt 0:00:28]} Be7 {
[%emt 0:01:58]} 10. O-O-O {[%emt 0:03:18]} O-O {[%emt 0:03:35]} 11. g4 {
[%emt 0:06:11]} Nxd4 {[%emt 0:09:26]} 12. Qxd4 {[%emt 0:00:39]} e5 {[%emt 0:00:
00]} 13. Qd3 {[%emt 0:00:40]} exf4 {[%emt 0:02:07]} 14. Bxf4 {[%emt 0:01:36]}
Be6 {[%emt 0:00:38]} 15. g5 {[%emt 0:07:12]} Nd7 {[%emt 0:01:20]} 16. Nd5 {
[%emt 0:03:03]} Bxd5 {[%emt 0:00:46]} 17. Qxd5 {[%emt 0:00:39]} Rac8 {[%emt 0:
00:00]} 18. c3 {[%emt 0:00:52]} Ne5 {[%emt 0:03:40]} 19. h4 {[%emt 0:05:22]} b5
{[%emt 0:06:15]} 20. a3 {[%emt 0:09:04]} Qc6 {[%emt 0:10:12]} 21. Kb1 {[%emt 0:
00:00]} Rfe8 {[%emt 0:09:41]} 22. Rhf1 {[%emt 0:04:01]} Bf8 {[%emt 0:05:02]}
23. Bxe5 {[%emt 0:03:39]} Qxd5 {[%emt 0:00:07]} 24. Rxd5 {[%emt 0:00:05]} Rxe5
{[%emt 0:04:56]} 25. Rxe5 {[%emt 0:00:08]} dxe5 {[%emt 0:00:02]} 26. Bd1 {
[%emt 0:00:30]} Bc5 {[%emt 0:02:40]} 27. Bb3 {[%emt 0:01:08]} Rc7 {[%emt 0:00:
00]} 28. h5 {[%emt 0:02:08]} Kf8 {[%emt 0:04:11]} 29. g6 {[%emt 0:01:19]} hxg6
{[%emt 0:00:07]} 30. hxg6 {[%emt 0:00:03]} f6 {[%emt 0:00:06]} 31. Rh1 {
[%emt 0:02:38]} Ke7 {[%emt 0:01:00]} 32. Rh7 {[%emt 0:01:03]} Ke8 {[%emt 0:00:
00]} 33. Bf7+ {[%emt 0:04:41]} Kf8 {[%emt 0:00:08]} 34. Rh8+ {[%emt 0:00:47]}
Ke7 {[%emt 0:00:01]} 35. Re8+ {[%emt 0:00:52]} Kd6 {[%emt 0:01:18]} 36. Rg8 {
[%emt 0:03:25]} f5 {[%emt 0:02:43]} 37. Rxg7 {[%emt 0:02:00]} f4 {[%emt 0:00:
00]} 38. Rh7 {[%emt 0:01:15]} f3 {[%emt 0:00:19]} 39. g7 {[%emt 0:01:07]} f2 {
[%emt 0:00:58]} 40. Rh6+ {[%emt 0:03:22]} Ke7 {[%emt 0:01:01]} 41. g8=Q {
[%emt 0:30:17]} f1=Q+ {[%emt 0:30:37]} 42. Ka2 {[%emt 0:00:25]} Rc8 {[%emt 0:
00:00]} 43. Qg5+ {[%emt 0:00:00]} Kxf7 {[%emt 0:00:00]} 44. Rh7+ {[%emt 0:00:
00]} Ke8 {[%emt 0:00:00]} 45. Qxe5+ {[%emt 0:00:00]} Kd8 {[%emt 0:00:00]} 46.
Qd5+ {[%emt 0:00:00]} Ke8 {[%emt 0:00:00]} 47. Qd7+ {[%emt 0:00:00]} 1-0